fUSD/lending_fUSD_20240628
["ID","MTS","AMOUNT","RATE_DAILY","PERIOD"]
[330549733,1719561202040,-10383.18,0.00022191,3]
[330549734,1719561202050,-1039.73,0.00022191,3]
[330549735,1719561202059,-1439.93,0.00022191,3]
[330549736,1719561202068,-6117.5,0.00022191,3]
[330549737,1719561202079,-1863.96,0.00022191,3]
[330549738,1719561202089,-887.72,0.00022191,3]
[330549739,1719561202099,-3531.61,0.00022191,3]
[330549740,1719561202108,-1143.1,0.00022191,3]
[330549741,1719561202118,-500.0,0.00022191,3]
[330549742,1719561202128,-1362.09,0.00022191,3]
[330549743,1719561202137,-500.0,0.00022191,3]
[330549744,1719561202146,-3216.0,0.00022191,3]
[330549745,1719561202155,-1155.64,0.00022191,3]
[330549746,1719561202165,-3529.87,0.00022191,3]
[330549747,1719561202174,-16559.11,0.00022191,3]
[330549748,1719561202183,-3804.04,0.00022191,3]
[330549749,1719561202192,-23179.74,0.00022191,3]
[330549750,1719561202202,-500.0,0.00022191,3]
[330549751,1719561202211,-850.77,0.00022191,3]
[330549752,1719561202220,-1207.75,0.00022191,3]
[330549753,1719561202229,-932.07,0.00022191,3]
[330549754,1719561202238,-1059.78,0.00022191,3]
[330549755,1719561202247,-2084.87,0.00022191,3]
[330549756,1719561202257,-500.0,0.00022191,3]
[330549757,1719561202266,-2749.65,0.00022191,3]
[330549758,1719561202275,-196.78799979,0.00022191,3]
[330549759,1719561202285,-12501.51,0.00022191,3]
[330549760,1719561202294,-547.83,0.00022191,3]
[330549761,1719561202304,-1431.47,0.00022191,3]
[330549762,1719561202313,-736.84,0.00022191,3]
[330549763,1719561202322,-500.0,0.00022191,3]
[330549764,1719561202333,-607.13,0.00022191,3]
[330549765,1719561202342,-2419.31,0.00022191,3]
[330549766,1719561202352,-500.0,0.00022191,3]
[330549767,1719561202362,-694.49,0.00022191,3]
[330549768,1719561202375,-500.0,0.00022191,3]
[330549769,1719561202385,-1192.09,0.00022191,3]
[330549770,1719561202395,-500.0,0.00022191,3]
[330549771,1719561202404,-9353.15,0.00022191,3]
[330549772,1719561202413,-1830.13,0.00022191,3]
[330549773,1719561202423,-14843.86,0.00022191,3]
[330549774,1719561202433,-8136.93,0.00022191,3]
[330549775,1719561202443,-917.05,0.00022191,3]
[330549776,1719561202775,-500.0,0.00022191,3]
[330549777,1719561202793,-500.0,0.00022191,3]
[330549778,1719561202802,-524.36,0.00022191,3]
[330549779,1719561202812,-1404.66,0.00022191,3]
[330549780,1719561202821,-500.0,0.00022191,3]
[330549781,1719561202832,-687.75,0.00022191,3]
[330549782,1719561202841,-590.48,0.00022191,3]
[330549783,1719561202850,-500.0,0.00022191,3]
[330549784,1719561202860,-9718.8,0.00022191,3]
[330549785,1719561202874,-2153.44,0.00022191,3]
[330549786,1719561202883,-1961.45,0.00022191,3]
[330549787,1719561202892,-2726.91,0.00022191,3]
[330549788,1719561202903,-30319.25,0.00022191,3]
[330549789,1719561202913,-977.64,0.00022191,3]
[330549790,1719561202922,-510.83,0.00022191,3]
[330549791,1719561202932,-627.05,0.00022191,3]
[330549792,1719561202943,-1308.73,0.00022191,3]
[330549793,1719561202952,-1727.28,0.00022191,3]
[330549794,1719561202962,-500.0,0.00022191,3]
[330549795,1719561202971,-345.92,0.00022191,3]
[330549796,1719561202980,-971.07,0.00022191,3]
[330549797,1719561202990,-500.0,0.00022191,3]
[330549798,1719561203000,-1351.8,0.00022191,3]
[330549799,1719561203010,-2608.81,0.00022191,3]
[330549800,1719561203019,-4237.77,0.00022191,3]
[330549801,1719561203029,-500.0,0.00022191,3]
[330549802,1719561203038,-1262.6,0.00022191,3]
[330549803,1719561203048,-4285.86,0.00022191,3]
[330549804,1719561203057,-1433.34,0.00022191,3]
[330549805,1719561203067,-500.0,0.00022191,3]
[330549806,1719561203076,-2837.45,0.00022191,3]
[330549807,1719561203088,-2531.85,0.00022191,3]
[330549808,1719561203098,-500.0,0.00022191,3]
[330549809,1719561203107,-6336.99,0.00022191,3]
[330549810,1719561203117,-2352.32,0.00022191,3]
[330549811,1719561203127,-12890.69,0.00022191,3]
[330549812,1719561203136,-500.0,0.00022191,3]
[330549813,1719561203146,-8252.27,0.00022191,3]
[330549814,1719561203156,-545.53,0.00022191,3]
[330549815,1719561203166,-5449.9,0.00022191,3]
[330549816,1719561203176,-1047.12,0.00022191,3]
[330549817,1719561203185,-8509.27,0.00022191,3]
[330549818,1719561203195,-2403.33,0.00022191,3]
[330549819,1719561203204,-1711.25,0.00022191,3]
[330549820,1719561203214,-320.31735199,0.00022191,3]
[330549821,1719561203224,-9077.06,0.00022191,3]
[330549822,1719561203234,-500.0,0.00022191,3]
[330549823,1719561203244,-500.0,0.00022191,3]
[330549824,1719561203254,-1089.03,0.00022191,3]
[330549825,1719561203264,-500.0,0.00022191,3]
[330549826,1719561203274,-2100.4,0.00022191,3]
[330549827,1719561203284,-1206.84,0.00022191,3]
[330549828,1719561203294,-2043.62,0.00022191,3]
[330549829,1719561203304,-3104.35,0.00022191,3]
[330549830,1719561203315,-48268.7,0.00022191,3]
[330549831,1719561203325,-500.0,0.00022191,3]
[330549832,1719561203337,-521.68,0.00022191,3]
[330549833,1719561203347,-949.58,0.00022191,3]
[330549834,1719561203356,-1255.94,0.00022191,3]
[330549835,1719561203365,-1571.3,0.00022191,3]
[330549836,1719561203374,-4077.23,0.00022191,3]
[330549837,1719561203384,-602.61,0.00022191,3]
[330549838,1719561203396,-11111.01,0.00022191,3]
[330549839,1719561203406,-500.0,0.00022191,3]
[330549840,1719561203418,-1358.81,0.00022191,3]
[330549841,1719561203428,-1300.0,0.00022191,3]
[330549842,1719561203438,-1332.94,0.00022191,3]
[330549843,1719561203448,-1544.91,0.00022191,3]
[330549844,1719561203459,-712.95,0.00022191,3]
[330549845,1719561203469,-1446.93,0.00022191,3]
[330549846,1719561203478,-42236.37,0.00022191,3]
[330549847,1719561203488,-850.09,0.00022191,3]
[330549848,1719561203498,-2886.12,0.00022191,3]
[330549849,1719561203507,-945.42,0.00022191,3]
[330549850,1719561203517,-707.93,0.00022191,3]
[330549851,1719561203526,-500.0,0.00022191,3]
[330549852,1719561203536,-594.36,0.00022191,3]
[330549853,1719561203546,-1924.21,0.00022191,3]
[330549854,1719561203556,-1289.14,0.00022191,3]
[330549855,1719561203565,-12586.2,0.00022191,3]
[330549856,1719561203575,-768.96,0.00022191,3]
[330549857,1719561203587,-2337.53,0.00022191,3]
[330549858,1719561203597,-5222.3,0.00022191,3]
[330549859,1719561203607,-831.9,0.00022191,3]
[330549860,1719561203617,-500.0,0.00022191,3]
[330549861,1719561203627,-500.0,0.00022191,3]
[330549862,1719561203637,-500.0,0.00022191,3]
[330549863,1719561203647,-628.24,0.00022191,3]
[330549864,1719561203658,-598.11,0.00022191,3]
[330549865,1719561203668,-603.56,0.00022191,3]
[330549866,1719561203678,-1283.39,0.00022191,3]
[330549867,1719561203687,-1699.87,0.00022191,3]
[330549868,1719561203697,-5851.92,0.00022191,3]
[330549869,1719561203707,-2793.12,0.00022191,3]
[330549870,1719561203716,-671.55,0.00022191,3]
[330549871,1719561203726,-540.72,0.00022191,3]
[330549872,1719561203736,-500.0,0.00022191,3]
[330549873,1719561203746,-4870.14,0.00022191,3]
[330549874,1719561203756,-721.87,0.00022191,3]
[330549875,1719561203766,-500.0,0.00022191,3]
[330549876,1719561203776,-505.4,0.00022191,3]
[330549877,1719561203786,-966.94,0.00022191,3]
[330549878,1719561203795,-500.0,0.00022191,3]
[330549879,1719561203805,-1685.84,0.00022191,3]
[330549880,1719561203815,-704.49,0.00022191,3]
[330549881,1719561203824,-2147.27,0.00022191,3]
[330549882,1719561203836,-500.0,0.00022191,3]
[330549883,1719561203845,-500.0,0.00022191,3]
[330549884,1719561203855,-574.19,0.00022191,3]
[330549885,1719561203868,-4610.65,0.00022191,3]
[330549886,1719561203878,-3996.23,0.00022191,3]
[330549887,1719561203887,-2065.71,0.00022191,3]
[330549888,1719561203897,-500.0,0.00022191,3]
[330549889,1719561203910,-587.38,0.00022191,3]
[330549890,1719561203920,-687.46,0.00022191,3]
[330549891,1719561203930,-1330.45,0.00022191,3]
[330549892,1719561203941,-3314.18,0.00022191,3]
[330549893,1719561203951,-3336.77,0.00022191,3]
[330549894,1719561203961,-500.0,0.00022191,3]
[330549895,1719561203971,-872.41,0.00022191,3]
[330549896,1719561203980,-500.0,0.00022191,3]
[330549897,1719561203990,-810.49,0.00022191,3]
[330549898,1719561203999,-1974.25,0.00022191,3]
[330549899,1719561204009,-500.0,0.00022191,3]
[330549900,1719561204018,-5236.64,0.00022191,3]
[330549901,1719561204028,-642.68,0.00022191,3]
[330549902,1719561204038,-4552.9,0.00022191,3]
[330549903,1719561204048,-32404.44,0.00022191,3]
[330549904,1719561204057,-795.7,0.00022191,3]
[330549905,1719561204068,-790.32,0.00022191,3]
[330549906,1719561204079,-24101.78,0.00022191,3]
[330549907,1719561204089,-4218.61,0.00022191,3]
[330549908,1719561204100,-922.73,0.00022191,3]
[330549909,1719561204110,-4199.29,0.00022191,3]
[330549910,1719561204121,-717.49,0.00022191,3]
[330549911,1719561204131,-7764.7,0.00022191,3]
[330549912,1719561204141,-897.41,0.00022191,3]
[330549913,1719561204152,-1450.89,0.00022191,3]
[330549914,1719561204162,-701.5,0.00022191,3]
[330549915,1719561204172,-694.42,0.00022191,3]
[330549916,1719561204183,-1033.21,0.00022191,3]
[330549917,1719561204193,-500.0,0.00022191,3]
[330549918,1719561204203,-608.64,0.00022191,3]
[330549919,1719561204213,-776.36,0.00022191,3]
[330549920,1719561204223,-4300.22,0.00022191,3]
[330549921,1719561204232,-500.0,0.00022191,3]
[330549922,1719561204242,-9904.94,0.00022191,3]
[330549923,1719561204252,-640.51,0.00022191,3]
[330549924,1719561204262,-431.83,0.00022191,3]
[330549925,1719561204272,-1429.64,0.00022191,3]
[330549926,1719561204282,-573.81,0.00022191,3]
[330549927,1719561204292,-3512.53,0.00022191,3]
[330549928,1719561204302,-1577.54,0.00022191,3]
[330549929,1719561204312,-2085.15,0.00022191,3]
[330549930,1719561204322,-500.0,0.00022191,3]
[330549931,1719561204333,-930.57,0.00022191,3]
[330549932,1719561204343,-4334.27,0.00022191,3]
[330549933,1719561204353,-1068.95,0.00022191,3]
[330549934,1719561204363,-1596.89,0.00022191,3]
[330549935,1719561204373,-1065.22,0.00022191,3]
[330549936,1719561204383,-351.159259,0.00022191,2]
[330549937,1719561204392,-17070.950037,0.00022191,2]
[330549938,1719561204402,-239.716356,0.00022191,2]
[330549939,1719561204412,-12619.30583,0.00022191,2]
[330549940,1719561204422,-419.949086,0.00022191,2]
[330549941,1719561204431,-526.175237,0.00022191,2]
[330549942,1719561204441,-19630.764364,0.00022191,2]
[330549943,1719561204451,-159.644349,0.00022191,2]
[330549944,1719561204461,-11380.633358,0.00022191,2]
[330549945,1719561204470,-8403.655252,0.00022191,2]
[330549946,1719561204480,-1164.601366,0.00022191,2]
[330549947,1719561204490,-212.400839,0.00022191,2]
[330549948,1719561204500,-1569.985052,0.00022191,2]
[330549949,1719561204510,-5000.0,0.00022251,2]
[330549950,1719561204519,-295.25,0.0002226,2]
[330549951,1719561204529,-219.0,0.0002234,2]
[330549952,1719561204538,-214.0,0.0002234,2]
[330549953,1719561204548,-350.0,0.0002244,4]
[330549954,1719561204558,-351.159259,0.00022458,2]
[330549955,1719561204567,-17070.950037,0.00022458,2]
[330549956,1719561204577,-239.716356,0.00022458,2]
[330549957,1719561204590,-12619.30583,0.00022458,2]
[330549958,1719561204601,-419.949086,0.00022458,2]
[330549959,1719561204610,-526.175237,0.00022458,2]
[330549960,1719561204620,-19630.764364,0.00022458,2]
[330549961,1719561204633,-159.644349,0.00022458,2]
[330549962,1719561204643,-11380.633358,0.00022458,2]
[330549963,1719561204653,-8403.655252,0.00022458,2]
[330549964,1719561204663,-1164.601366,0.00022458,2]
[330549965,1719561204674,-212.400839,0.00022458,2]
[330549966,1719561204684,-1569.985052,0.00022458,2]
[330549967,1719561204694,-174.897051,0.00022458,2]
[330549968,1719561204704,-863.07,0.00022465,3]
[330549969,1719561204715,-907.53,0.00022465,3]
[330549970,1719561204724,-2122.53,0.00022465,3]
[330549971,1719561204734,-1141.96,0.00022465,3]
[330549972,1719561204744,-1690.68,0.00022465,3]
[330549973,1719561204754,-870.65,0.00022465,3]
[330549974,1719561204764,-503.68,0.00022465,3]
[330549975,1719561204773,-500.0,0.00022465,3]
[330549976,1719561204783,-504.05,0.00022465,3]
[330549977,1719561204792,-846.93,0.00022465,3]
[330549978,1719561204802,-1149.92,0.00022465,3]
[330549979,1719561204811,-1397.93,0.00022465,3]
[330549980,1719561204821,-1748.17,0.00022465,3]
[330549981,1719561204831,-500.0,0.00022465,3]
[330549982,1719561204843,-542.84,0.00022465,3]
[330549983,1719561204852,-500.0,0.00022465,3]
[330549984,1719561204862,-693.92,0.00022465,3]
[330549985,1719561204875,-792.31,0.00022465,3]
[330549986,1719561204884,-500.0,0.00022465,3]
[330549987,1719561204893,-908.05,0.00022465,3]
[330549988,1719561204903,-500.0,0.00022465,3]
[330549989,1719561204913,-1448.94,0.00022465,3]
[330549990,1719561204922,-500.0,0.00022465,3]
[330549991,1719561204932,-500.0,0.00022465,3]
[330549992,1719561204941,-1782.8,0.00022465,3]
[330549993,1719561204951,-500.0,0.00022465,3]
[330549994,1719561204961,-856.16,0.00022465,3]
[330549995,1719561204971,-539.97,0.00022465,3]
[330549996,1719561204981,-500.0,0.00022465,3]
[330549997,1719561204990,-1183.51,0.00022465,3]
[330549998,1719561205000,-500.0,0.00022465,3]
[330549999,1719561205010,-1199.91,0.00022465,3]
[330550000,1719561205020,-1192.41,0.00022465,3]
[330550001,1719561205029,-2299.92,0.00022465,3]
[330550002,1719561205039,-500.0,0.00022465,3]
[330550003,1719561205049,-654.32,0.00022465,3]
[330550004,1719561205058,-673.16,0.00022465,3]
[330550005,1719561205068,-500.0,0.00022465,3]
[330550006,1719561205079,-1135.59,0.00022465,3]
[330550007,1719561205093,-718.46,0.00022465,3]
[330550008,1719561205103,-500.0,0.00022465,3]
[330550009,1719561205113,-500.0,0.00022465,3]
[330550010,1719561205123,-500.0,0.00022465,3]
[330550011,1719561205133,-828.5,0.00022465,3]
[330550012,1719561205143,-500.0,0.00022465,3]
[330550013,1719561205152,-500.0,0.00022465,3]
[330550014,1719561205162,-500.0,0.00022465,3]
[330550015,1719561205172,-1470.46,0.00022465,2]
[330550016,1719561205181,-568.18,0.00022465,3]
[330550017,1719561205191,-1942.8,0.00022465,3]
[330550018,1719561205201,-500.0,0.00022465,3]
[330550019,1719561205211,-500.0,0.00022465,3]
[330550020,1719561205220,-500.0,0.00022465,3]
[330550021,1719561205231,-559.8,0.00022465,3]
[330550022,1719561205241,-687.15,0.00022465,3]
[330550023,1719561205251,-557.81,0.00022465,3]
[330550024,1719561205260,-1013.31,0.00022465,3]
[330550025,1719561205270,-1313.87,0.00022465,3]
[330550026,1719561205409,-555.71,0.00022465,3]
[330550027,1719561205419,-1142.83,0.00022465,3]
[330550028,1719561205429,-606.98,0.00022465,3]
[330550029,1719561205439,-1090.69,0.00022465,3]
[330550030,1719561205449,-355.5242943,0.00022465,3]
[330550031,1719561205459,-500.0,0.00022465,3]
[330550032,1719561205468,-741.97,0.00022465,3]
[330550033,1719561205478,-500.0,0.00022465,3]
[330550034,1719561205488,-833.46,0.00022465,3]
[330550035,1719561205498,-858.42,0.00022465,3]
[330550036,1719561205508,-784.18,0.00022465,3]
[330550037,1719561205519,-500.0,0.00022465,3]
[330550038,1719561205529,-676.3,0.00022465,3]
[330550039,1719561205539,-640.7,0.00022465,3]
[330550040,1719561205548,-547.64,0.00022465,3]
[330550041,1719561205558,-1509.32,0.00022465,3]
[330550042,1719561205568,-775.75,0.00022465,3]
[330550043,1719561205578,-1104.3,0.00022465,3]
[330550044,1719561205588,-500.0,0.00022465,3]
[330550045,1719561205597,-1251.26,0.00022465,3]
[330550046,1719561205607,-774.67,0.00022465,3]
[330550047,1719561205617,-1975.28,0.00022465,3]
[330550048,1719561205627,-247.95046545,0.00022465,3]
[330550049,1719561205637,-704.42,0.00022465,3]
[330550050,1719561205647,-917.85,0.00022465,3]
[330550051,1719561205657,-1651.77,0.00022465,3]
[330550052,1719561205667,-1425.82,0.00022465,3]
[330550053,1719561205677,-500.0,0.00022465,3]
[330550054,1719561205688,-316.11594157,0.00022465,3]
[330550055,1719561205698,-545.19,0.00022465,3]
[330550056,1719561205709,-575.69,0.00022465,3]
[330550057,1719561205720,-500.0,0.00022465,3]
[330550058,1719561205730,-998.16,0.00022465,3]
[330550059,1719561205739,-768.59,0.00022465,3]
[330550060,1719561205749,-586.61,0.00022465,3]
[330550061,1719561205759,-848.48,0.00022465,3]
[330550062,1719561205772,-618.73,0.00022465,3]
[330550063,1719561205782,-2391.81,0.00022465,3]
[330550064,1719561205791,-500.0,0.00022465,3]
[330550065,1719561205801,-764.56,0.00022465,3]
[330550066,1719561205811,-1272.64,0.00022465,3]
[330550067,1719561205820,-688.17,0.00022465,3]
[330550068,1719561205830,-628.0,0.00022465,3]
[330550069,1719561205841,-652.19,0.00022465,3]
[330550070,1719561205849,-1144.92,0.00022465,3]
[330550071,1719561205858,-500.0,0.00022465,3]
[330550072,1719561205870,-8009.39,0.00022465,3]
[330550073,1719561205881,-500.0,0.00022465,3]
[330550074,1719561205890,-3067.21,0.00022465,3]
[330550075,1719561205899,-937.69,0.00022465,3]
[330550076,1719561205911,-1469.95,0.00022465,3]
[330550077,1719561205920,-608.87,0.00022465,3]
[330550078,1719561205930,-530.38,0.00022465,3]
[330550079,1719561205939,-698.09,0.00022465,3]
[330550080,1719561205951,-1828.93,0.00022465,3]
[330550081,1719561205961,-931.89,0.00022465,3]
[330550082,1719561205970,-500.0,0.00022465,3]
[330550083,1719561205980,-2389.09,0.00022465,3]
[330550084,1719561205989,-500.0,0.00022465,3]
[330550085,1719561205998,-2237.48,0.00022465,3]
[330550086,1719561206008,-809.41,0.00022465,3]
[330550087,1719561206017,-548.11,0.00022465,3]
[330550088,1719561206027,-1079.6,0.00022465,3]
[330550089,1719561206036,-844.19,0.00022465,3]
[330550090,1719561206046,-1576.09,0.00022465,3]
[330550091,1719561206056,-1489.92,0.00022465,3]
[330550092,1719561206065,-1957.19,0.00022465,3]
[330550093,1719561206075,-912.0,0.00022465,3]
[330550094,1719561206087,-688.77,0.00022465,3]
[330550095,1719561206097,-2356.49,0.00022465,3]
[330550096,1719561206107,-2130.37,0.00022465,3]
[330550097,1719561206116,-838.95,0.00022465,3]
[330550098,1719561206126,-596.16,0.00022465,3]
[330550099,1719561206135,-1793.14,0.00022465,3]
[330550100,1719561206144,-2016.92,0.00022465,3]
[330550101,1719561206153,-543.6,0.00022465,3]
[330550102,1719561206163,-1344.1,0.00022465,3]
[330550103,1719561206172,-2804.61,0.00022465,3]
[330550104,1719561206182,-2335.31,0.00022465,3]
[330550105,1719561206191,-966.61,0.00022465,3]
[330550106,1719561206201,-1555.99,0.00022465,3]
[330550107,1719561206211,-1299.02,0.00022465,3]
[330550108,1719561206222,-1622.54,0.00022465,3]
[330550109,1719561206232,-2999.18,0.00022465,3]
[330550110,1719561206241,-1982.91,0.00022465,3]
[330550111,1719561206251,-1196.1,0.00022465,3]
[330550112,1719561206260,-580.04,0.00022465,3]
[330550113,1719561206270,-585.72,0.00022465,3]
[330550114,1719561206280,-1835.49,0.00022465,3]
[330550115,1719561206290,-829.04,0.00022465,3]
[330550116,1719561206299,-500.0,0.00022465,3]
[330550117,1719561206309,-500.0,0.00022465,3]
[330550118,1719561206319,-500.0,0.00022465,3]
[330550119,1719561206329,-1053.06,0.00022465,3]
[330550120,1719561206343,-500.0,0.00022465,3]
[330550121,1719561206353,-926.48,0.00022465,3]
[330550122,1719561206362,-2025.35,0.00022465,3]
[330550123,1719561206371,-520.99,0.00022465,3]
[330550124,1719561206382,-2045.94,0.00022465,3]
[330550125,1719561206392,-1125.69,0.00022465,3]
[330550126,1719561206401,-3299.83,0.00022465,3]
[330550127,1719561206411,-652.91,0.00022465,3]
[330550128,1719561206422,-515.76,0.00022465,3]
[330550129,1719561206431,-1218.63,0.00022465,3]
[330550130,1719561206442,-764.42,0.00022465,3]
[330550131,1719561206452,-500.0,0.00022465,3]
[330550132,1719561206461,-807.73,0.00022465,3]
[330550133,1719561206471,-500.0,0.00022465,3]
[330550134,1719561206481,-500.0,0.00022465,3]
[330550135,1719561206490,-518.58,0.00022465,3]
[330550136,1719561206499,-500.0,0.00022465,3]
[330550137,1719561206509,-670.83,0.00022465,3]
[330550138,1719561206519,-500.0,0.00022465,3]
[330550139,1719561206528,-500.0,0.00022465,3]
[330550140,1719561206538,-717.38,0.00022465,3]
[330550141,1719561206547,-1228.76,0.00022465,3]
[330550142,1719561206556,-1190.64,0.00022465,3]
[330550143,1719561206566,-500.0,0.00022465,3]
[330550144,1719561206576,-1204.53,0.00022465,3]
[330550145,1719561206588,-1119.97,0.00022465,3]
[330550146,1719561206598,-500.0,0.00022465,3]
[330550147,1719561206607,-4412.5,0.00022465,3]
[330550148,1719561206616,-1038.25,0.00022465,3]
[330550149,1719561206625,-930.05,0.00022465,3]
[330550150,1719561206634,-1337.55,0.00022465,3]
[330550151,1719561206643,-4811.88,0.00022465,3]
[330550152,1719561206652,-4473.58,0.00022465,3]
[330550153,1719561206662,-689.91,0.00022465,3]
[330550154,1719561206672,-500.0,0.00022465,3]
[330550155,1719561206681,-500.0,0.00022465,3]
[330550156,1719561206690,-816.16,0.00022465,3]
[330550157,1719561206700,-2445.0,0.00022465,3]
[330550158,1719561206709,-500.0,0.00022465,3]
[330550159,1719561206718,-1090.73,0.00022465,3]
[330550160,1719561206727,-1132.58,0.00022465,3]
[330550161,1719561206737,-615.52,0.00022465,3]
[330550162,1719561206746,-500.0,0.00022465,3]
[330550163,1719561206756,-1125.15,0.00022465,3]
[330550164,1719561206765,-568.55,0.00022465,3]
[330550165,1719561206775,-500.0,0.00022465,3]
[330550166,1719561206785,-2510.06,0.00022465,3]
[330550167,1719561206794,-2267.1,0.00022465,3]
[330550168,1719561206804,-724.86,0.00022465,3]
[330550169,1719561206813,-759.55,0.00022465,3]
[330550170,1719561206822,-783.56,0.00022465,3]
[330550171,1719561206832,-500.0,0.00022465,3]
[330550172,1719561206842,-500.0,0.00022465,3]
[330550173,1719561206851,-1851.28,0.00022465,3]
[330550174,1719561206860,-2477.12,0.00022465,3]
[330550175,1719561206874,-2254.48,0.00022465,3]
[330550176,1719561206884,-500.0,0.00022465,3]
[330550177,1719561206893,-2145.27,0.00022465,3]
[330550178,1719561206903,-3000.49,0.00022465,3]
[330550179,1719561206914,-1339.23,0.00022465,3]
[330550180,1719561206924,-1120.11,0.00022465,3]
[330550181,1719561206934,-1458.45,0.00022465,3]
[330550182,1719561206945,-1203.63,0.00022465,3]
[330550183,1719561206955,-780.04,0.00022465,3]
[330550184,1719561206966,-500.0,0.00022465,3]
[330550185,1719561206975,-17654.57,0.00022465,3]
[330550186,1719561206985,-2156.78,0.00022465,3]
[330550187,1719561206995,-1038.74,0.00022465,3]
[330550188,1719561207004,-500.0,0.00022465,3]
[330550189,1719561207014,-1281.81,0.00022465,3]
[330550190,1719561207023,-1367.37,0.00022465,3]
[330550191,1719561207032,-500.0,0.00022465,3]
[330550192,1719561207042,-707.98,0.00022465,3]
[330550193,1719561207051,-2512.87,0.00022465,3]
[330550194,1719561207061,-500.0,0.00022465,3]
[330550195,1719561207070,-500.0,0.00022465,3]
[330550196,1719561207081,-692.45,0.00022465,3]
[330550197,1719561207092,-2622.42,0.00022465,3]
[330550198,1719561207102,-1233.32,0.00022465,3]
[330550199,1719561207113,-1810.79,0.00022465,3]
[330550200,1719561207122,-1142.92,0.00022465,3]
[330550201,1719561207132,-1361.17,0.00022465,3]
[330550202,1719561207141,-1277.67,0.00022465,3]
[330550203,1719561207151,-1346.62,0.00022465,3]
[330550204,1719561207160,-1322.18,0.00022465,3]
[330550205,1719561207170,-552.58,0.00022465,3]
[330550206,1719561207180,-500.0,0.00022465,3]
[330550207,1719561207189,-863.49,0.00022465,3]
[330550208,1719561207199,-2301.13,0.00022465,3]
[330550209,1719561207208,-4612.82,0.00022465,3]
[330550210,1719561207217,-500.0,0.00022465,3]
[330550211,1719561207226,-1538.87,0.00022465,3]
[330550212,1719561207235,-1624.52,0.00022465,3]
[330550213,1719561207245,-2577.63,0.00022465,3]
[330550214,1719561207254,-500.0,0.00022465,3]
[330550215,1719561207263,-500.0,0.00022465,3]
[330550216,1719561207273,-1509.29,0.00022465,3]
[330550217,1719561207282,-500.0,0.00022465,3]
[330550218,1719561207291,-1002.25,0.00022465,3]
[330550219,1719561207301,-1414.89,0.00022465,3]
[330550220,1719561207310,-1177.0,0.00022465,3]
[330550221,1719561207319,-1548.23,0.00022465,3]
[330550222,1719561207329,-1324.8,0.00022465,3]
[330550223,1719561207343,-1380.03,0.00022465,3]
[330550224,1719561207352,-1820.37,0.00022465,3]
[330550225,1719561207361,-705.74,0.00022465,3]
[330550226,1719561207369,-2472.64,0.00022465,3]
[330550227,1719561207378,-3381.95,0.00022465,3]
[330550228,1719561207388,-864.54,0.00022465,3]
[330550229,1719561207397,-5070.88,0.00022465,3]
[330550230,1719561207406,-2034.01,0.00022465,3]
[330550231,1719561207416,-1227.23,0.00022465,3]
[330550232,1719561207425,-1396.45,0.00022465,3]